bitfinex/quotes_ETHUSD_20250807
["timestamp","ask_amount","ask_price","bid_price","bid_amount"]
[1754565004827,2.6220898,3813.8,3813.5,0.1312]
[1754565005027,2.62198799,3813.9,3813.6,4.17]
[1754565005244,1.144,3813.9,3813.6,4.17]
[1754565005478,2.75315424,3814.0,3813.6,4.17]
[1754565005647,2.62202061,3813.9,3813.6,4.17]
[1754565005960,2.62185993,3814.1,3813.6,7.48449182]
[1754565005961,2.6218826,3814.1,3813.6,7.48449182]
[1754565006157,2.6218826,3814.1,3813.7,0.1312]
[1754565006452,2.621745,3814.3,3814.0,0.1312]
[1754565006654,1.144,3814.5,3814.1,4.167]
[1754565006820,1.144,3814.5,3814.2,0.1312]
[1754565007015,2.62150684,3814.6,3814.2,0.1312]
[1754565007346,2.62162045,3814.5,3814.2,0.1312]
[1754565007550,2.6215404,3814.6,3814.2,0.1312]
[1754565007718,2.62162611,3814.5,3814.2,0.1312]
[1754565008242,2.62157226,3814.6,3814.2,0.55]
[1754565008423,2.62161959,3814.5,3814.4,0.1312]
[1754565008618,0.7088,3814.9,3814.4,0.1312]
[1754565008950,2.6214056,3814.8,3814.5,4.167]
[1754565009147,2.62144192,3814.7,3814.5,4.167]
[1754565009852,3.05650584,3814.9,3814.5,4.167]
[1754565009853,3.05655504,3814.9,3814.5,4.167]
[1754565010253,2.6213687,3814.9,3814.5,4.167]
[1754565010419,2.75246097,3815.0,3814.5,4.167]
[1754565010616,2.6213595,3814.9,3814.5,4.167]
[1754565010944,2.62133254,3814.9,3814.5,4.167]
[1754565011142,0.84,3815.0,3814.5,4.167]
[1754565011354,2.62147027,3814.7,3814.5,4.167]
[1754565011534,2.62139904,3814.8,3814.5,4.167]
[1754565011854,2.62126426,3815.0,3814.5,6.78856546]
[1754565012057,2.62130281,3814.9,3814.6,0.1312]
[1754565012571,2.62316337,3815.1,3814.8,0.1312]
[1754565012779,2.62316337,3815.1,3814.9,4.16]
[1754565013056,0.002,3815.1,3815.0,0.1312]
[1754565016729,0.002,3815.1,3815.0,0.87746355]
[1754565016934,0.002,3815.1,3815.0,0.90367586]
[1754565017242,0.002,3815.1,3815.0,0.87746355]
[1754565018145,0.002,3815.1,3815.0,0.1312]
[1754565018375,1.146,3815.1,3815.0,4.154]
[1754565018559,0.002,3815.1,3815.0,4.154]
[1754565018877,0.002,3815.1,3815.0,4.2852]
[1754565019052,0.002,3815.1,3815.0,4.2822]
[1754565019569,0.002,3815.1,3815.0,7.59379189]
[1754565019770,0.002,3815.1,3815.0,4.97255992]
[1754565019979,0.002,3815.1,3815.0,7.59379189]
[1754565020507,0.002,3815.1,3815.0,8.14379189]
[1754565020958,0.002,3815.1,3815.0,8.75699189]
[1754565021150,0.002,3815.1,3815.0,8.14379189]
[1754565022949,3.75656327,3815.1,3815.0,4.2782]
[1754565023150,1.1354,3815.1,3815.0,4.2782]
[1754565023470,3.75656327,3815.1,3815.0,4.2782]
[1754565023980,1.1354,3815.1,3815.0,4.2782]
[1754565024140,0.002,3815.1,3815.0,4.2782]
[1754565024352,1.1354,3815.1,3815.0,4.2782]
[1754565024983,3.75656327,3815.1,3815.0,4.2782]
[1754565025291,1.1354,3815.1,3815.0,0.1312]
[1754565025587,1.1354,3815.1,3815.0,4.2752]
[1754565026492,3.75656327,3815.1,3815.0,4.2752]
[1754565026891,0.002,3815.1,3815.0,4.2752]
[1754565027093,0.002,3815.1,3815.0,4.96485617]
[1754565027385,0.002,3815.1,3815.0,0.82085617]
[1754565027589,0.002,3815.1,3815.0,4.2722]
[1754565027788,0.002,3815.1,3815.0,0.1312]
[1754565027951,3.75656327,3815.1,3815.0,4.2712]
[1754565028689,1.1354,3815.1,3815.0,4.2712]
[1754565028991,0.002,3815.1,3815.0,4.2712]
[1754565029194,0.002,3815.1,3815.0,5.22259242]
[1754565029656,0.002,3815.1,3815.0,4.2712]
[1754565030794,0.002,3815.1,3815.0,6.89243197]
[1754565030968,0.002,3815.1,3815.0,4.2712]
[1754565031167,2.62316327,3815.1,3815.0,0.1312]
[1754565031374,1.1354,3815.1,3814.7,0.1312]
[1754565031695,2.62130068,3814.9,3814.8,4.134]
[1754565032103,1.1334,3814.9,3814.8,4.134]
[1754565032263,3.75470068,3814.9,3814.8,4.134]
[1754565032466,1.1334,3814.9,3814.8,4.134]
[1754565033002,3.75470068,3814.9,3814.8,4.134]
[1754565033906,0.7042,3815.1,3814.8,4.56052]
[1754565034203,0.7022,3815.0,3814.8,4.56052]
[1754565034500,2.62130068,3814.9,3814.8,0.42652]
[1754565034705,1.1334,3814.9,3813.8,0.001]
[1754565034875,1.2646,3814.8,3813.9,4.132]
[1754565035076,0.1312,3814.3,3813.9,4.132]
[1754565035281,0.7022,3814.6,3814.0,2.62185961]
[1754565035551,2.62161454,3814.5,3814.1,0.1312]
[1754565036010,1.1354,3815.1,3814.3,0.55]
[1754565036189,1.1354,3815.1,3814.4,0.1312]
[1754565036190,2.62127963,3815.0,3814.4,0.1312]
[1754565036505,3.88777173,3815.1,3814.6,0.1312]
[1754565036708,2.62134314,3814.9,3814.6,0.1312]
[1754565036886,2.62137084,3814.8,3814.6,0.1312]
[1754565037077,2.62143812,3814.7,3814.6,0.1312]
[1754565037400,3.75483812,3814.7,3814.6,0.1312]
[1754565038670,2.62162274,3814.5,3814.3,0.1312]
[1754565038870,1.1334,3814.6,3814.4,4.135]
[1754565039068,3.75503883,3814.5,3814.4,4.135]
[1754565039269,0.1312,3814.8,3814.4,4.135]
[1754565039270,3.88600544,3814.8,3814.4,4.134]
[1754565039475,2.62157556,3814.5,3814.4,4.134]
[1754565039671,3.75497556,3814.5,3814.4,4.134]
[1754565039898,2.62164429,3814.4,3814.3,0.1312]
[1754565040109,3.75501395,3814.5,3814.3,4.2652]
[1754565040296,1.1334,3814.5,3814.3,4.2652]
[1754565040793,2.62164429,3814.4,3814.3,0.81990397]
[1754565040995,3.75504429,3814.4,3814.3,4.2622]
[1754565042096,1.1334,3814.4,3814.3,4.2622]
[1754565042606,0.1312,3814.8,3814.3,6.8828634]
[1754565042607,2.62138937,3814.8,3814.3,6.8828634]
[1754565042791,2.62143858,3814.7,3814.4,0.95046271]
[1754565042997,2.62139247,3814.8,3814.4,3.57210479]
[1754565043198,0.7022,3814.9,3814.4,3.57210479]
[1754565043519,0.7022,3814.9,3814.5,0.1312]
[1754565043821,2.62137896,3814.8,3814.6,4.13]
[1754565044202,3.32357896,3814.8,3814.6,4.13]
[1754565044404,0.7022,3814.8,3814.6,4.13]
[1754565044607,2.62143812,3814.7,3814.6,4.13]
[1754565044808,3.75483812,3814.7,3814.6,4.13]
[1754565045115,1.1334,3814.7,3814.6,4.13]
[1754565045317,3.88585355,3815.0,3814.6,4.13]
[1754565045529,3.75470068,3814.9,3814.6,4.13]
[1754565045685,2.62143812,3814.7,3814.6,4.13]
[1754565046081,3.75483812,3814.7,3814.6,4.13]
[1754565046487,2.62133677,3814.9,3814.6,4.13]
[1754565046683,0.4332,3815.1,3814.6,4.13]
[1754565046903,2.6213038,3814.9,3814.6,4.13]
[1754565047602,2.62125312,3815.0,3814.6,4.13]
[1754565047802,3.32345312,3815.0,3814.6,4.13]
[1754565048003,3.75465312,3815.0,3814.6,4.13]
[1754565048533,0.7022,3814.9,3814.6,4.13]
[1754565049033,0.002,3815.1,3814.8,2.75251107]
[1754565049330,0.002,3815.1,3815.0,0.1312]
[1754565050044,0.002,3815.1,3815.0,2.75243197]
[1754565050507,0.002,3815.1,3815.0,0.1312]
[1754565050708,0.002,3815.1,3815.0,3.84232197]
[1754565054719,0.002,3815.1,3815.0,7.97132197]
[1754565056318,0.002,3815.1,3815.0,8.55902197]
[1754565056506,0.002,3815.1,3815.0,11.42782197]
[1754565056836,0.002,3815.1,3815.0,11.55902197]
[1754565057042,0.002,3815.1,3815.0,11.69122197]
[1754565059446,0.002,3815.1,3815.0,13.86636197]
[1754565059941,0.002,3815.1,3815.0,15.61636197]
[1754565060141,0.002,3815.1,3815.0,11.69122197]
[1754565061113,0.002,3815.1,3815.0,6.84232197]
[1754565061329,0.002,3815.1,3815.0,10.42032197]
[1754565061536,0.002,3815.1,3815.0,10.97032197]
[1754565062264,0.002,3815.1,3815.0,11.66502197]
[1754565062464,0.002,3815.1,3815.0,11.53282197]
[1754565062633,0.002,3815.1,3815.0,10.97032197]
[1754565062839,0.002,3815.1,3815.0,6.84232197]
[1754565063017,0.002,3815.1,3815.0,11.53282197]
[1754565063563,0.002,3815.1,3815.0,10.97032197]
[1754565063856,0.002,3815.1,3815.0,6.84232197]
[1754565064261,0.002,3815.1,3815.0,3.67109]
[1754565064560,1.1778,3815.1,3815.0,7.42032197]
[1754565064714,1.1778,3815.1,3815.0,7.97032197]
[1754565065065,0.002,3815.1,3815.0,7.97032197]
[1754565065608,0.002,3815.1,3815.0,7.43043197]
[1754565067558,0.002,3815.1,3815.0,11.72643197]
[1754565067719,0.002,3815.1,3815.0,13.16120529]
[1754565068618,0.002,3815.1,3815.0,16.16120529]
[1754565070348,0.002,3815.1,3815.0,16.72370529]
[1754565070649,0.002,3815.1,3815.0,16.16120529]
[1754565074716,1.1778,3815.1,3815.0,16.16120529]
[1754565074924,0.7377,3815.1,3815.0,16.16120529]
[1754565075565,0.002,3815.1,3815.0,16.16120529]
[1754565076520,0.002,3815.1,3815.0,12.03320529]
[1754565076737,0.002,3815.1,3815.0,16.16020529]
[1754565076938,0.002,3815.1,3815.0,16.15920529]
[1754565078669,0.002,3815.1,3815.0,25.06699466]
[1754565080064,0.6921,3815.1,3815.0,25.06699466]
[1754565080271,1.1233,3815.1,3815.0,25.06699466]
[1754565081201,0.002,3815.1,3815.0,25.06699466]
[1754565083699,0.002,3815.5,3815.4,0.55]
[1754565083883,0.002,3815.5,3815.4,13.52823869]
[1754565084085,0.002,3815.5,3815.4,13.65943869]
[1754565084430,0.002,3815.5,3815.4,16.65943869]
[1754565084631,0.002,3815.5,3815.4,17.22193869]
[1754565085127,0.002,3815.5,3815.4,16.15143869]
[1754565085285,0.002,3815.5,3815.4,16.71393869]
[1754565085480,0.002,3815.5,3815.4,16.84613869]
[1754565086080,0.002,3815.5,3815.4,16.71393869]
[1754565086311,0.002,3815.5,3815.4,16.84613869]
[1754565087908,0.002,3815.7,3815.6,3.17081979]
[1754565088142,0.002,3815.7,3815.6,49.20360916]
[1754565088313,0.002,3815.7,3815.6,49.89830916]
[1754565088630,0.002,3816.3,3815.7,6.1707511]
[1754565088784,0.002,3816.3,3815.7,6.7332511]
[1754565088986,0.002,3816.3,3815.7,7.61390028]
[1754565089917,0.002,3816.3,3815.7,37.61390028]
[1754565090979,0.002,3816.3,3816.1,0.55]
[1754565091281,0.6921,3816.3,3816.2,16.71960773]
[1754565091488,0.4332,3816.3,3816.2,18.15438105]
[1754565091960,0.002,3816.3,3816.2,14.23015684]
[1754565092131,0.002,3816.3,3816.2,18.35415684]
[1754565092285,0.002,3816.3,3816.2,36.68712284]
[1754565093213,0.002,3816.3,3816.2,45.19111984]
[1754565093528,0.002,3816.3,3816.2,23.42375684]
[1754565093689,1.1233,3816.3,3816.2,14.67195684]
[1754565094211,1.1233,3816.3,3816.2,15.22195684]
[1754565094378,1.1233,3816.3,3816.2,13.54895684]
[1754565094584,1.1233,3816.3,3816.2,18.22195684]
[1754565094931,1.1233,3816.3,3816.2,14.09895684]
[1754565095088,1.1233,3816.3,3816.2,18.22195684]
[1754565095284,1.1233,3816.3,3816.2,14.09895684]
[1754565095498,1.1233,3816.3,3816.2,18.22195684]
[1754565097355,1.1233,3816.3,3816.2,14.09895684]
[1754565097562,1.1233,3816.3,3816.2,18.22195684]
[1754565097761,1.1233,3816.3,3816.2,14.09895684]
[1754565098333,3.74363907,3816.3,3816.2,10.416]
[1754565098540,3.74363907,3816.3,3816.2,6.294]
[1754565098735,3.74363907,3816.3,3816.2,10.416]
[1754565100264,2.62043305,3816.2,3815.7,2.62074402]
[1754565100465,3.74173305,3816.2,3815.8,4.122]
[1754565100762,1.1213,3816.1,3815.8,4.122]
[1754565101164,1.1213,3816.0,3815.8,4.122]
[1754565101462,1.1213,3815.9,3815.8,6.74268242]
[1754565102955,1.1213,3815.9,3815.6,0.55]
[1754565103284,1.1213,3815.8,3815.7,4.672]
[1754565103652,1.1213,3815.8,3815.7,4.8032]
[1754565105186,1.1213,3815.8,3815.7,7.4239511]
[1754565106502,2.62234398,3816.3,3815.7,7.4239511]
[1754565106788,0.6901,3816.1,3815.9,2.62055338]
[1754565107094,0.6901,3816.1,3816.0,4.122]
[1754565107264,0.6901,3816.1,3816.0,4.2532]
[1754565107664,1.1213,3816.1,3816.0,4.2532]
[1754565108194,1.1213,3816.1,3816.0,0.1322]
[1754565108398,3.7417764,3816.1,3816.0,4.2542]
[1754565108594,1.1213,3816.1,3816.0,4.2542]
[1754565108949,1.1213,3816.1,3816.0,0.1322]
[1754565109202,1.1213,3816.1,3816.0,4.2532]
[1754565109558,3.7417764,3816.1,3816.0,4.2532]
[1754565110158,1.1213,3816.1,3816.0,4.2532]
[1754565110673,1.1213,3816.1,3816.0,0.1322]
[1754565110893,3.7417764,3816.1,3816.0,4.2532]
[1754565111234,1.1213,3816.1,3816.0,4.2532]
[1754565111895,1.1213,3816.1,3816.0,6.87374507]
[1754565112095,1.1213,3816.1,3816.0,4.2532]
[1754565112284,3.7417764,3816.1,3816.0,4.2532]
[1754565112481,1.1213,3816.1,3816.0,4.2532]
[1754565114196,3.7417764,3816.1,3816.0,4.2532]
[1754565115008,1.1213,3816.1,3816.0,4.2532]
[1754565115595,3.7417764,3816.1,3816.0,4.2532]
[1754565115796,1.1213,3816.1,3816.0,4.2532]
[1754565116109,3.7417764,3816.1,3816.0,4.2532]
[1754565116921,1.1213,3816.1,3816.0,4.2532]
[1754565117121,3.7417764,3816.1,3816.0,4.2532]
[1754565117692,1.1213,3816.1,3816.0,4.2532]
[1754565118914,3.7417764,3816.1,3816.0,4.2532]
[1754565119430,1.1213,3816.1,3816.0,4.2532]
[1754565119935,3.7417764,3816.1,3816.0,4.2532]
[1754565120953,1.1213,3816.1,3816.0,4.2532]
[1754565121829,3.7417764,3816.1,3816.0,4.122]
[1754565122123,3.7417764,3816.1,3816.0,8.416]
[1754565122496,13.28598435,3816.1,3816.0,0.001]
[1754565122699,13.41718435,3816.1,3816.0,0.001]
[1754565122935,2.62102586,3815.3,3815.2,0.001]
[1754565123102,2.62102586,3815.3,3815.2,4.12]
[1754565123302,3.91732586,3815.3,3815.2,4.12]
[1754565123499,5.72402868,3815.3,3815.2,4.12]
[1754565123696,3.91732586,3815.3,3815.2,4.12]
[1754565127703,3.91732586,3815.3,3815.2,0.001]
[1754565127931,3.91732586,3815.3,3815.2,4.12]
[1754565128342,3.91732586,3815.3,3815.2,0.001]
[1754565128524,13.47894346,3815.3,3815.2,0.001]
[1754565129238,4.57115409,3815.3,3815.2,0.001]
[1754565129561,13.47894346,3815.3,3815.2,0.001]
[1754565130448,4.57115409,3815.3,3815.2,0.001]
[1754565131437,13.47894346,3815.3,3815.2,0.001]
[1754565131939,20.59694346,3815.3,3815.2,0.001]
[1754565132327,11.68915409,3815.3,3815.2,0.001]
[1754565132645,7.57115409,3815.3,3815.2,0.001]
[1754565133213,16.47894346,3815.3,3815.2,0.001]
[1754565133766,7.57115409,3815.3,3815.2,0.001]
[1754565135452,16.47894346,3815.3,3815.2,0.001]
[1754565138439,4.95012823,3815.3,3814.5,4.08783117]
[1754565138653,2.62140862,3814.8,3814.5,4.08783117]
[1754565139013,2.62140862,3814.8,3814.6,0.5137]
[1754565139428,2.62143812,3814.7,3814.6,0.5137]
[1754565139623,2.6214008,3814.8,3814.6,0.5137]
[1754565139835,2.62137872,3814.8,3814.7,4.294]
[1754565140044,2.6213367,3814.9,3814.7,4.294]
[1754565140444,2.62132867,3814.9,3814.7,4.294]
[1754565140795,0.1312,3815.1,3814.7,6.91542883]
[1754565140952,2.62116519,3815.1,3814.8,0.6449]
[1754565141118,2.62116519,3815.1,3814.9,0.5137]
[1754565141449,2.62116519,3815.1,3815.0,4.117]
[1754565143454,3.73896519,3815.1,3815.0,4.117]
[1754565143837,2.62116519,3815.1,3815.0,4.117]
[1754565144036,3.73896519,3815.1,3815.0,4.117]
[1754565144237,2.62130068,3814.9,3814.8,0.1312]
[1754565144451,2.75250068,3814.9,3814.8,4.116]
[1754565144658,2.6213694,3814.8,3814.7,4.294]
[1754565144856,2.6213694,3814.8,3814.7,8.41]
[1754565145740,2.6213694,3814.8,3814.7,4.116]
[1754565146770,2.62134017,3814.9,3814.7,4.116]
[1754565147138,2.6213694,3814.8,3814.7,4.116]
[1754565148474,0.1312,3815.2,3814.7,4.116]
[1754565148655,2.62135169,3814.9,3814.7,4.116]
[1754565148966,2.6213694,3814.8,3814.7,4.116]
[1754565149171,3.7391694,3814.8,3814.7,4.116]
[1754565149471,2.6213694,3814.8,3814.7,4.116]
[1754565150049,2.62133949,3814.9,3814.7,4.116]
[1754565150250,2.6213694,3814.8,3814.7,4.116]
[1754565151547,2.6213694,3814.8,3814.7,8.41]
[1754565152174,3.73898735,3815.1,3814.7,8.41]
[1754565152473,2.62132919,3814.9,3814.7,8.41]
[1754565152839,2.6213694,3814.8,3814.7,8.41]
[1754565154737,3.2772694,3814.8,3814.7,8.41]
[1754565155879,2.62133712,3814.9,3814.7,8.41]
[1754565156381,0.6559,3815.0,3814.7,8.41]
[1754565156382,2.6213694,3814.8,3814.7,8.41]
[1754565157551,2.62131857,3814.9,3814.7,8.41]
[1754565158278,2.6213694,3814.8,3814.7,8.41]
[1754565158978,3.2772694,3814.8,3814.7,8.41]
[1754565159185,3.7391694,3814.8,3814.7,8.41]
[1754565159347,2.6213694,3814.8,3814.7,8.41]
[1754565159756,2.62133632,3814.9,3814.7,8.41]
[1754565160084,2.6213694,3814.8,3814.7,8.41]
[1754565160657,2.62133934,3814.9,3814.7,8.41]
[1754565160882,2.6213694,3814.8,3814.7,8.41]
[1754565161877,3.7391694,3814.8,3814.7,8.41]
[1754565162485,2.62143812,3814.7,3814.6,0.001]
[1754565162650,2.75263812,3814.7,3814.6,4.113]
[1754565162978,3.87043812,3814.7,3814.6,4.113]
[1754565164065,3.87043812,3814.7,3814.6,0.001]
[1754565169509,12.77822749,3814.7,3814.6,0.001]
[1754565169656,15.46210677,3814.7,3814.6,0.001]
[1754565170757,9.5543174,3814.7,3814.6,0.001]
[1754565172258,18.46210677,3814.7,3814.6,0.001]
[1754565172698,32.96210677,3814.7,3814.6,0.001]
[1754565173989,24.0543174,3814.7,3814.6,0.001]
[1754565175922,9.5543174,3814.7,3814.6,0.001]
[1754565176580,6.87043812,3814.7,3814.6,0.001]
[1754565176982,6.42153812,3814.7,3814.6,0.001]
[1754565177382,6.86763812,3814.7,3814.6,0.001]
[1754565184196,2.75263812,3814.7,3814.6,0.001]
[1754565184598,2.6233694,3814.8,3814.7,0.55]
[1754565184599,0.002,3814.8,3814.7,0.55]
[1754565184790,0.002,3814.8,3814.7,1.1478]
[1754565185015,0.002,3814.8,3814.7,2.42883049]
[1754565185294,0.002,3814.8,3814.7,12.15726861]
[1754565189139,0.002,3814.8,3814.7,17.67666461]
[1754565190031,0.002,3814.8,3814.7,21.97066461]
[1754565190204,0.002,3814.8,3814.7,16.45126861]
[1754565190869,0.002,3814.8,3814.7,20.02553861]
[1754565191433,0.002,3814.8,3814.7,16.45126861]
[1754565194246,0.002,3814.8,3814.7,25.35905798]
[1754565194911,0.002,3814.8,3814.7,16.45126861]
[1754565195109,0.002,3814.8,3814.7,25.35905798]
[1754565195347,0.002,3814.8,3814.7,15.30046861]
[1754565196017,0.002,3814.8,3814.7,11.00646861]
[1754565196212,0.002,3814.8,3814.7,2.62143812]
[1754565196416,0.6709,3814.8,3814.7,2.62143812]
[1754565196764,0.6709,3814.8,3814.7,7.27443812]
[1754565196765,1.117,3814.8,3814.7,7.27443812]
[1754565197057,0.6709,3814.8,3814.7,7.27443812]
[1754565197225,0.002,3814.8,3814.7,3.17143812]
[1754565197568,0.002,3814.8,3814.7,7.27443812]
[1754565197726,0.002,3814.8,3814.7,9.2147916]
[1754565199435,1.117,3814.8,3814.7,9.2147916]
[1754565199743,0.002,3814.8,3814.7,9.2147916]
[1754565200346,0.002,3814.8,3814.7,9.2137916]
[1754565200644,0.002,3814.8,3814.7,12.8105916]
[1754565201940,0.002,3814.8,3814.7,17.1045916]
[1754565202139,0.002,3814.8,3814.7,13.0025916]
[1754565202343,0.002,3814.8,3814.7,16.6389916]
[1754565205422,0.002,3814.8,3814.7,12.5369916]
[1754565205624,0.002,3814.8,3814.7,16.6379916]
[1754565207953,1.1194,3814.8,3814.7,7.59663812]
[1754565208151,1.1194,3814.8,3814.7,11.69663812]
[1754565208365,1.1194,3814.8,3814.7,4.4252]
[1754565208568,1.1194,3814.8,3814.7,11.14663812]
[1754565208977,0.002,3814.8,3814.7,11.69663812]
[1754565209273,0.002,3814.8,3814.7,13.12875742]
[1754565210275,0.002,3814.8,3814.7,17.74254679]
[1754565210570,0.002,3814.8,3814.7,20.61134679]
[1754565210755,0.002,3815.2,3814.7,20.61134679]
[1754565210756,0.002,3815.2,3815.1,6.17116327]
[1754565211077,0.002,3815.2,3815.1,20.05719221]
[1754565211367,0.002,3815.2,3815.1,24.92529221]
[1754565211534,0.002,3815.2,3815.1,24.48239221]
[1754565212366,0.002,3815.2,3815.1,24.67630359]
[1754565213185,0.002,3815.2,3815.1,20.57730359]
[1754565213338,1.1194,3815.2,3815.1,14.69536327]
[1754565213980,0.002,3815.2,3815.1,14.69536327]
[1754565214177,0.002,3815.2,3815.1,14.56416327]
[1754565214334,0.002,3815.2,3815.1,14.69536327]
[1754565214541,0.002,3815.2,3815.1,17.82214255]
[1754565215062,0.002,3815.2,3815.1,18.01528663]
[1754565215260,0.002,3815.2,3815.1,18.01428663]
[1754565216689,0.002,3815.5,3815.4,3.17095717]
[1754565216840,0.002,3815.5,3815.4,19.20295611]
[1754565217042,0.002,3815.5,3815.4,20.05114996]
[1754565218288,0.002,3815.5,3815.4,15.95314996]
[1754565218643,1.1194,3815.5,3815.4,20.05014996]
[1754565219049,1.1194,3815.5,3815.4,26.34514996]
[1754565219371,0.002,3815.5,3815.4,26.34514996]
[1754565220672,0.002,3815.5,3815.4,17.43736059]
[1754565220854,0.002,3815.5,3815.4,13.34036059]
[1754565221053,0.002,3815.5,3815.4,17.43636059]
[1754565221966,1.1194,3815.5,3815.4,10.71940342]
[1754565222287,1.1194,3815.5,3815.4,10.5222]
[1754565222585,1.1194,3815.5,3815.4,11.0722]
[1754565222957,3.74028848,3815.5,3815.4,6.4262]
[1754565223168,4.37679705,3815.5,3815.4,10.391]
[1754565223374,3.74028848,3815.5,3815.4,10.391]
[1754565223572,1.1194,3815.5,3815.4,10.391]
[1754565224961,1.1194,3815.5,3815.4,6.295]
[1754565225284,1.1194,3815.5,3815.4,10.391]
[1754565226360,1.1194,3815.5,3815.4,10.941]
[1754565226585,1.1194,3815.5,3815.4,11.0712]
[1754565228496,1.1194,3815.5,3815.4,15.3632]
[1754565228694,1.1194,3815.5,3815.4,4.9732]
[1754565228892,1.1194,3815.5,3815.4,11.68915717]
[1754565229191,1.1194,3815.5,3815.4,13.12017061]
[1754565229192,0.002,3815.5,3815.4,13.12017061]
[1754565229358,0.002,3815.5,3815.4,22.97754651]
[1754565229690,0.002,3815.5,3815.4,23.10874651]
[1754565231070,0.002,3815.5,3815.4,23.55164651]
[1754565231867,0.002,3815.5,3815.4,11.82817061]
[1754565232372,0.252,3815.5,3815.4,11.82817061]
[1754565234508,0.002,3815.6,3815.5,10.21088848]
[1754565234802,0.002,3815.6,3815.5,12.05979439]
[1754565237110,0.002,3815.6,3815.5,8.01979439]
[1754565238576,1.0979,3815.6,3815.5,12.11179439]
[1754565239593,0.6265,3815.6,3815.5,12.11179439]
[1754565239995,0.002,3815.6,3815.5,12.11179439]
[1754565240679,0.002,3815.6,3815.5,21.01797594]
[1754565241518,3.71871979,3815.6,3815.5,1.84890591]
[1754565241727,1.0979,3815.6,3815.5,5.94090591]
[1754565242543,1.0979,3815.6,3815.5,5.93990591]
[1754565242705,1.0979,3815.6,3815.5,1.84890591]
[1754565244216,1.0979,3815.6,3815.5,4.091]
[1754565244834,1.0979,3815.6,3815.4,2.62094846]
[1754565245037,0.002,3815.6,3815.5,4.091]
[1754565245540,1.0979,3815.6,3815.5,4.091]
[1754565245843,3.71871979,3815.6,3815.5,4.091]
[1754565246522,1.0979,3815.6,3815.5,4.091]
[1754565246719,3.71871979,3815.6,3815.5,4.091]
[1754565247030,1.0979,3815.6,3815.5,4.091]
[1754565247229,1.0979,3815.6,3815.3,2.62101948]
[1754565247412,1.0959,3815.5,3815.4,4.091]
[1754565247813,1.0959,3815.5,3815.4,7.26195717]
[1754565248117,1.0959,3815.5,3815.4,8.25035547]
[1754565248317,0.6245,3815.5,3815.4,8.25035547]
[1754565248540,0.002,3815.6,3815.5,2.62088848]
[1754565248918,1.0979,3815.6,3815.5,2.62088848]
[1754565249241,1.0979,3815.6,3815.4,7.26192484]
[1754565249446,1.0959,3815.5,3815.4,4.641]
[1754565249845,0.4714,3815.5,3815.4,4.641]
[1754565250053,1.0959,3815.5,3815.4,7.26195717]
[1754565250621,0.002,3815.6,3815.5,3.17088848]
[1754565251350,1.0979,3815.6,3815.5,3.17088848]
[1754565251555,1.0979,3815.6,3815.1,0.001]
[1754565251754,2.62106672,3815.3,3815.2,4.09]
[1754565251920,3.71696672,3815.3,3815.2,4.09]
[1754565253130,3.71696672,3815.3,3815.1,0.001]
[1754565253321,2.62106672,3815.3,3815.2,4.09]
[1754565253524,0.002,3815.6,3815.2,4.09]
[1754565253722,2.62282891,3815.6,3815.2,4.09]
[1754565253949,3.71683451,3815.5,3815.2,4.09]
[1754565254263,1.0959,3815.4,3815.2,4.09]
[1754565254457,1.0959,3815.4,3815.1,0.001]
[1754565254662,2.62093451,3815.5,3815.2,4.089]
[1754565254663,1.0959,3815.3,3815.2,4.089]
[1754565255362,0.6245,3815.3,3815.2,6.71009456]
[1754565255863,0.002,3815.6,3815.3,0.55]
[1754565256070,0.6265,3815.6,3815.5,2.62088848]
[1754565256222,0.4734,3815.6,3815.5,6.70988848]
[1754565256423,1.0979,3815.6,3815.5,4.2202]
[1754565258244,1.0979,3815.6,3815.5,0.1312]
[1754565258463,1.0979,3815.6,3815.5,4.2202]
[1754565259469,3.71871979,3815.6,3815.5,4.088]
[1754565259667,2.62109456,3815.2,3815.1,0.001]
[1754565259869,2.62109456,3815.2,3815.1,4.089]
[1754565260069,3.21639456,3815.2,3815.1,4.089]
[1754565260273,3.65889456,3815.2,3815.1,4.089]
[1754565260478,3.21639456,3815.2,3815.1,4.089]
[1754565260645,0.5953,3815.2,3815.1,4.51112]
[1754565260840,1.0378,3815.2,3815.1,4.51112]
[1754565261041,1.0378,3815.2,3815.1,4.089]
[1754565261042,3.65889456,3815.2,3815.1,4.089]
[1754565261243,1.0378,3815.2,3815.1,4.089]
[1754565262378,1.0378,3815.2,3815.1,0.001]
[1754565262576,1.0378,3815.2,3815.1,4.089]
[1754565263146,3.21619027,3815.5,3815.1,4.089]
[1754565263342,2.62089027,3815.5,3815.1,4.089]
[1754565263543,1.0378,3815.4,3815.2,4.088]
[1754565263781,3.6587592,3815.4,3815.2,4.088]
[1754565263980,1.0378,3815.3,3815.2,4.088]
[1754565265172,1.0378,3815.3,3815.2,4.087]
[1754565265374,3.65882586,3815.3,3815.2,4.087]
[1754565265582,1.0378,3815.3,3815.2,4.087]
[1754565266988,3.65882586,3815.3,3815.2,4.087]
[1754565267861,1.0378,3815.3,3815.2,4.087]
[1754565268056,3.65882586,3815.3,3815.2,4.087]
[1754565271060,1.0378,3815.3,3815.2,4.087]
[1754565271394,3.65882586,3815.3,3815.2,4.087]
[1754565271694,0.1312,3815.4,3815.2,4.087]
[1754565271863,0.5953,3815.3,3815.2,4.087]